[Event "Titled Tuesday Blitz December 06 Early 2022"]
[White "Golubev, Mikhail"]
[Black "Holt, Conrad"]
[WhiteFideId "14100983"]
[BlackFideId "2034387"]
[WhiteElo "2374"]
[BlackElo "2592"]
[Result "1-0"]
[Round "02"]
[TimeControl "180+1"]
[Date "2022.12.06"]
[WhiteClock "0:00:18"]
[BlackClock "0:00:03"]

1. e4 {[%clk 0:03:00]}  e6 {[%clk 0:03:00]} 2. d4 {[%clk 0:03:00]}  d5 {[%clk 0:03:00]} 3. Nc3 {[%clk 0:02:59]}  Nf6 {[%clk 0:03:00]} 4. Bg5 {[%clk 0:02:58]}  dxe4 {[%clk 0:03:00]} 5. Nxe4 {[%clk 0:02:58]}  Be7 {[%clk 0:03:00]} 6. Nxf6+ {[%clk 0:02:58]}  Bxf6 {[%clk 0:03:01]} 7. Bxf6 {[%clk 0:02:58]}  Qxf6 {[%clk 0:03:02]} 8. Qd2 {[%clk 0:02:58]}  c5 {[%clk 0:03:01]} 9. O-O-O {[%clk 0:02:51]}  Qxd4 {[%clk 0:02:57]} 10. Qxd4 {[%clk 0:02:50]}  cxd4 {[%clk 0:02:57]} 11. Rxd4 {[%clk 0:02:51]}  Nc6 {[%clk 0:02:55]} 12. Rd2 {[%clk 0:02:47]}  Ke7 {[%clk 0:02:42]} 13. Nf3 {[%clk 0:02:47]}  Rd8 {[%clk 0:02:36]} 14. Rxd8 {[%clk 0:02:45]}  Nxd8 {[%clk 0:02:36]} 15. Bd3 {[%clk 0:02:44]}  Bd7 {[%clk 0:02:36]} 16. Ne5 {[%clk 0:02:39]}  Be8 {[%clk 0:02:32]} 17. Rd1 {[%clk 0:02:37]}  f6 {[%clk 0:02:29]} 18. Nc4 {[%clk 0:02:35]}  Nc6 {[%clk 0:02:11]} 19. Be4 {[%clk 0:02:29]}  Bh5 {[%clk 0:01:59]} 20. Rd2 {[%clk 0:02:22]}  Rc8 {[%clk 0:01:53]} 21. Nd6 {[%clk 0:02:20]}  Rc7 {[%clk 0:01:50]} 22. Nxb7 {[%clk 0:02:13]}  Nb4 {[%clk 0:01:40]} 23. a3 {[%clk 0:02:08]}  Na6 {[%clk 0:01:27]} 24. Na5 {[%clk 0:01:58]}  Nc5 {[%clk 0:01:26]} 25. Bc6 {[%clk 0:01:48]}  Bg6 {[%clk 0:01:18]} 26. f3 {[%clk 0:01:43]}  e5 {[%clk 0:01:16]} 27. b4 {[%clk 0:01:39]}  Ne6 {[%clk 0:01:15]} 28. c3 {[%clk 0:01:33]}  Nd8 {[%clk 0:01:08]} 29. b5 {[%clk 0:01:30]}  Ne6 {[%clk 0:01:07]} 30. Nb3 {[%clk 0:01:21]}  Nf4 {[%clk 0:00:48]} 31. Nc5 {[%clk 0:01:17]}  Be8 {[%clk 0:00:46]} 32. Na6 {[%clk 0:01:06]}  Rc8 {[%clk 0:00:46]} 33. Bxe8 {[%clk 0:01:04]}  Kxe8 {[%clk 0:00:38]} 34. Kc2 {[%clk 0:01:04]}  Ke7 {[%clk 0:00:34]} 35. Nb4 {[%clk 0:01:03]}  Ke6 {[%clk 0:00:31]} 36. Nc6 {[%clk 0:01:03]}  Rc7 {[%clk 0:00:26]} 37. a4 {[%clk 0:01:00]}  g5 {[%clk 0:00:19]} 38. c4 {[%clk 0:00:59]}  h5 {[%clk 0:00:19]} 39. g3 {[%clk 0:00:56]}  Nh3 {[%clk 0:00:19]} 40. Kc3 {[%clk 0:00:49]}  Ng1 {[%clk 0:00:19]} 41. c5 {[%clk 0:00:45]}  Nxf3 {[%clk 0:00:19]} 42. Rd6+ {[%clk 0:00:45]}  Kf5 {[%clk 0:00:17]} 43. b6 {[%clk 0:00:45]}  axb6 {[%clk 0:00:12]} 44. cxb6 {[%clk 0:00:46]}  Rh7 {[%clk 0:00:11]} 45. a5 {[%clk 0:00:43]}  Nxh2 {[%clk 0:00:05]} 46. a6 {[%clk 0:00:41]}  h4 {[%clk 0:00:05]} 47. g4+ {[%clk 0:00:38]}  Nxg4 {[%clk 0:00:05]} 48. a7 {[%clk 0:00:37]}  h3 {[%clk 0:00:05]} 49. a8=Q {[%clk 0:00:35]}  h2 {[%clk 0:00:05]} 50. Ne7+ {[%clk 0:00:22]}  Kf4 {[%clk 0:00:04]} 51. Rd1 {[%clk 0:00:18]}  Nf2 {[%clk 0:00:03]} 52. Rf1 {[%clk 0:00:18]} 1-0


[Site "https://www.chess.com"]

[Event "Titled Tuesday Blitz December 06 Early 2022"]
[White "Gormally, Daniel W"]
[Black "D`Arruda, Ricardo D."]
[WhiteFideId "406465"]
[BlackFideId "100692"]
[WhiteElo "2553"]
[BlackElo "2465"]
[Result "1-0"]
[Round "02"]
[TimeControl "180+1"]
[Date "2022.12.07"]
[WhiteClock "0:00:53"]
[BlackClock "0:01:04"]

1. d4 {[%clk 0:02:59]}  Nf6 {[%clk 0:02:58]} 2. Bg5 {[%clk 0:02:58]}  e6 {[%clk 0:02:57]} 3. e4 {[%clk 0:02:58]}  Be7 {[%clk 0:02:55]} 4. e5 {[%clk 0:02:58]}  Nd5 {[%clk 0:02:55]} 5. Bxe7 {[%clk 0:02:58]}  Qxe7 {[%clk 0:02:55]} 6. Qd2 {[%clk 0:02:58]}  d6 {[%clk 0:02:55]} 7. Nf3 {[%clk 0:02:56]}  Nc6 {[%clk 0:02:55]} 8. c4 {[%clk 0:02:53]}  Nb6 {[%clk 0:02:55]} 9. exd6 {[%clk 0:02:51]}  cxd6 {[%clk 0:02:54]} 10. Be2 {[%clk 0:02:51]}  O-O {[%clk 0:02:52]} 11. O-O {[%clk 0:02:51]}  Bd7 {[%clk 0:02:52]} 12. Nc3 {[%clk 0:02:50]}  Rfd8 {[%clk 0:02:48]} 13. Rfe1 {[%clk 0:02:49]}  Rac8 {[%clk 0:02:46]} 14. Rad1 {[%clk 0:02:47]}  a6 {[%clk 0:02:45]} 15. h3 {[%clk 0:02:40]}  Qf8 {[%clk 0:02:42]} 16. b3 {[%clk 0:02:37]}  Be8 {[%clk 0:02:39]} 17. Qf4 {[%clk 0:02:35]}  d5 {[%clk 0:02:38]} 18. c5 {[%clk 0:02:26]}  Nd7 {[%clk 0:02:37]} 19. Qe3 {[%clk 0:02:16]}  Nf6 {[%clk 0:02:36]} 20. Ne5 {[%clk 0:02:09]}  Nxe5 {[%clk 0:02:35]} 21. dxe5 {[%clk 0:01:58]}  Nd7 {[%clk 0:02:26]} 22. b4 {[%clk 0:01:58]}  Nb8 {[%clk 0:02:23]} 23. a3 {[%clk 0:01:52]}  Nc6 {[%clk 0:02:23]} 24. Qg3 {[%clk 0:01:53]}  f6 {[%clk 0:02:21]} 25. exf6 {[%clk 0:01:35]}  Qxf6 {[%clk 0:02:21]} 26. Bg4 {[%clk 0:01:35]}  Bf7 {[%clk 0:02:13]} 27. Na4 {[%clk 0:01:35]}  Rc7 {[%clk 0:02:08]} 28. Re3 {[%clk 0:01:33]}  Re7 {[%clk 0:02:03]} 29. f4 {[%clk 0:01:31]}  Nd4 {[%clk 0:02:01]} 30. Re5 {[%clk 0:01:21]}  Nf5 {[%clk 0:01:57]} 31. Bxf5 {[%clk 0:01:21]}  exf5 {[%clk 0:01:56]} 32. Nc3 {[%clk 0:01:09]}  Rxe5 {[%clk 0:01:41]} 33. fxe5 {[%clk 0:01:09]}  f4 {[%clk 0:01:41]} 34. exf6 {[%clk 0:01:03]}  fxg3 {[%clk 0:01:41]} 35. fxg7 {[%clk 0:01:04]}  Kxg7 {[%clk 0:01:12]} 36. Ne4 {[%clk 0:01:03]}  d4 {[%clk 0:01:09]} 37. Nxg3 {[%clk 0:00:58]}  Bg6 {[%clk 0:01:05]} 38. Ne2 {[%clk 0:00:53]}  d3 {[%clk 0:01:04]} 39. Nf4 {[%clk 0:00:54]}  d2 {[%clk 0:01:04]} 40. Ne6+ {[%clk 0:00:53]} 1-0


[Site "https://www.chess.com"]

[Event "Titled Tuesday Blitz December 06 Early 2022"]
[White "Harikrishna, Pentala"]
[Black "Hristodoulou, Panagiotis"]
[WhiteFideId "5007003"]
[BlackFideId "4214340"]
[WhiteElo "2617"]
[BlackElo "2272"]
[Result "1-0"]
[Round "02"]
[TimeControl "180+1"]
[Date "2022.12.06"]
[WhiteClock "0:01:06"]
[BlackClock "0:00:03"]

1. Nf3 {[%clk 0:03:00]}  Nf6 {[%clk 0:02:47]} 2. g3 {[%clk 0:03:01]}  d5 {[%clk 0:02:47]} 3. Bg2 {[%clk 0:03:01]}  c6 {[%clk 0:02:45]} 4. O-O {[%clk 0:03:01]}  Bg4 {[%clk 0:02:46]} 5. h3 {[%clk 0:02:58]}  Bh5 {[%clk 0:02:46]} 6. d4 {[%clk 0:02:58]}  Nbd7 {[%clk 0:02:45]} 7. c4 {[%clk 0:02:58]}  e6 {[%clk 0:02:46]} 8. cxd5 {[%clk 0:02:57]}  exd5 {[%clk 0:02:41]} 9. Qb3 {[%clk 0:02:57]}  Qb6 {[%clk 0:02:38]} 10. Qe3+ {[%clk 0:02:57]}  Be7 {[%clk 0:02:31]} 11. Nh4 {[%clk 0:02:57]}  Bg6 {[%clk 0:02:30]} 12. Nxg6 {[%clk 0:02:56]}  hxg6 {[%clk 0:02:30]} 13. Nc3 {[%clk 0:02:55]}  Qd8 {[%clk 0:02:25]} 14. Qd3 {[%clk 0:02:53]}  O-O {[%clk 0:02:24]} 15. h4 {[%clk 0:02:53]}  Nb6 {[%clk 0:02:19]} 16. Bf3 {[%clk 0:02:49]}  Qd7 {[%clk 0:02:05]} 17. Kg2 {[%clk 0:02:49]}  Qf5 {[%clk 0:01:52]} 18. Qxf5 {[%clk 0:02:35]}  gxf5 {[%clk 0:01:53]} 19. Bg5 {[%clk 0:02:35]}  Rfe8 {[%clk 0:01:52]} 20. Bxf6 {[%clk 0:02:35]}  Bxf6 {[%clk 0:01:51]} 21. e3 {[%clk 0:02:35]}  Nc4 {[%clk 0:01:43]} 22. b3 {[%clk 0:02:34]}  Nd6 {[%clk 0:01:43]} 23. Rac1 {[%clk 0:02:32]}  f4 {[%clk 0:01:22]} 24. gxf4 {[%clk 0:02:27]}  Bxh4 {[%clk 0:01:19]} 25. Rh1 {[%clk 0:02:19]}  Bf6 {[%clk 0:01:17]} 26. Bg4 {[%clk 0:02:11]}  g6 {[%clk 0:01:12]} 27. Na4 {[%clk 0:01:56]}  Ne4 {[%clk 0:01:07]} 28. Bf3 {[%clk 0:01:54]}  Nd6 {[%clk 0:00:54]} 29. Nc5 {[%clk 0:01:54]}  Kg7 {[%clk 0:00:43]} 30. b4 {[%clk 0:01:32]}  a6 {[%clk 0:00:17]} 31. a4 {[%clk 0:01:26]}  Re7 {[%clk 0:00:14]} 32. Rh3 {[%clk 0:01:16]}  Rh8 {[%clk 0:00:12]} 33. Rxh8 {[%clk 0:01:16]}  Kxh8 {[%clk 0:00:13]} 34. Nxa6 {[%clk 0:01:16]}  Nf5 {[%clk 0:00:04]} 35. Nc5 {[%clk 0:01:10]}  Kg7 {[%clk 0:00:04]} 36. Bg4 {[%clk 0:01:09]}  Nh4+ {[%clk 0:00:04]} 37. Kg3 {[%clk 0:01:08]}  Re8 {[%clk 0:00:03]} 38. Nxb7 {[%clk 0:01:06]}  Rb8 {[%clk 0:00:03]} 1-0


[Site "https://www.chess.com"]

[Event "Titled Tuesday Blitz December 06 Early 2022"]
[White "Herman, Daniel"]
[Black "Quizon, Daniel"]
[WhiteFideId "30935008"]
[BlackFideId "5217911"]
[WhiteElo "1897"]
[BlackElo "2385"]
[Result "1-0"]
[Round "02"]
[TimeControl "180+1"]
[Date "2022.12.07"]
[WhiteClock "0:00:20"]
[BlackClock "0:01:11"]

1. Nc3 {[%clk 0:03:00]}  Nf6 {[%clk 0:02:59]} 2. e4 {[%clk 0:03:00]}  d6 {[%clk 0:03:00]} 3. d4 {[%clk 0:03:00]}  g6 {[%clk 0:02:54]} 4. Be3 {[%clk 0:02:57]}  Bg7 {[%clk 0:02:54]} 5. f3 {[%clk 0:02:56]}  O-O {[%clk 0:02:55]} 6. Qd2 {[%clk 0:02:57]}  c5 {[%clk 0:02:52]} 7. dxc5 {[%clk 0:02:40]}  Nc6 {[%clk 0:02:52]} 8. cxd6 {[%clk 0:02:35]}  Be6 {[%clk 0:02:51]} 9. Nge2 {[%clk 0:02:27]}  exd6 {[%clk 0:02:50]} 10. O-O-O {[%clk 0:02:21]}  Qa5 {[%clk 0:02:46]} 11. Nd4 {[%clk 0:02:06]}  Nxd4 {[%clk 0:02:44]} 12. Bxd4 {[%clk 0:02:07]}  Rac8 {[%clk 0:02:40]} 13. a3 {[%clk 0:01:54]}  Qc7 {[%clk 0:02:19]} 14. g4 {[%clk 0:01:42]}  a6 {[%clk 0:02:18]} 15. h4 {[%clk 0:01:34]}  b5 {[%clk 0:02:17]} 16. h5 {[%clk 0:01:27]}  Qb7 {[%clk 0:02:09]} 17. h6 {[%clk 0:01:17]}  Bh8 {[%clk 0:02:01]} 18. g5 {[%clk 0:01:17]}  Nd7 {[%clk 0:01:57]} 19. Bxh8 {[%clk 0:01:17]}  Kxh8 {[%clk 0:01:58]} 20. Qd4+ {[%clk 0:01:07]}  f6 {[%clk 0:01:58]} 21. Qxd6 {[%clk 0:01:07]}  Rc6 {[%clk 0:01:58]} 22. Qd4 {[%clk 0:01:02]}  Qc7 {[%clk 0:01:42]} 23. Kb1 {[%clk 0:00:55]}  Ne5 {[%clk 0:01:36]} 24. f4 {[%clk 0:00:46]}  Nf3 {[%clk 0:01:36]} 25. Qe3 {[%clk 0:00:42]}  Bg4 {[%clk 0:01:36]} 26. Be2 {[%clk 0:00:37]}  fxg5 {[%clk 0:01:36]} 27. Bxf3 {[%clk 0:00:35]}  Bxf3 {[%clk 0:01:36]} 28. Qxf3 {[%clk 0:00:35]}  gxf4 {[%clk 0:01:36]} 29. Qd3 {[%clk 0:00:33]}  Qe5 {[%clk 0:01:35]} 30. Qd7 {[%clk 0:00:32]}  Rc7 {[%clk 0:01:35]} 31. Qd6 {[%clk 0:00:31]}  Qxd6 {[%clk 0:01:34]} 32. Rxd6 {[%clk 0:00:32]}  g5 {[%clk 0:01:35]} 33. Nd5 {[%clk 0:00:31]}  Rcf7 {[%clk 0:01:33]} 34. Rg1 {[%clk 0:00:31]}  f3 {[%clk 0:01:33]} 35. Ne3 {[%clk 0:00:31]}  f2 {[%clk 0:01:32]} 36. Rxg5 {[%clk 0:00:31]}  f1=Q+ {[%clk 0:01:32]} 37. Nxf1 {[%clk 0:00:31]}  Rxf1+ {[%clk 0:01:33]} 38. Ka2 {[%clk 0:00:32]}  R1f6 {[%clk 0:01:29]} 39. Rgd5 {[%clk 0:00:28]}  Kg8 {[%clk 0:01:29]} 40. e5 {[%clk 0:00:24]}  Rf2 {[%clk 0:01:29]} 41. Rc6 {[%clk 0:00:19]}  Ra8 {[%clk 0:01:26]} 42. Rd7 {[%clk 0:00:19]}  Re2 {[%clk 0:01:22]} 43. Rg7+ {[%clk 0:00:19]}  Kh8 {[%clk 0:01:23]} 44. Rcc7 {[%clk 0:00:19]}  Rxe5 {[%clk 0:01:09]} 45. Rxh7+ {[%clk 0:00:19]}  Kg8 {[%clk 0:01:10]} 46. Rcg7+ {[%clk 0:00:19]}  Kf8 {[%clk 0:01:11]} 47. Rh8# {[%clk 0:00:20]} 1-0


[Site "https://www.chess.com"]

[Event "Titled Tuesday Blitz December 06 Early 2022"]
[White "Hoffmann, Asa"]
[Black "Schekachikhin, Maksim"]
[WhiteFideId "2001470"]
[BlackFideId "24177830"]
[WhiteElo "2117"]
[BlackElo "2272"]
[Result "0-1"]
[Round "02"]
[TimeControl "180+1"]
[Date "2022.12.07"]
[WhiteClock "0:00:51"]
[BlackClock "0:00:47"]

1. d4 {[%clk 0:02:47]}  e6 {[%clk 0:02:54]} 2. e4 {[%clk 0:02:46]}  d5 {[%clk 0:02:51]} 3. e5 {[%clk 0:02:46]}  c5 {[%clk 0:02:51]} 4. Nf3 {[%clk 0:02:46]}  Bd7 {[%clk 0:02:51]} 5. Bd3 {[%clk 0:02:45]}  Nc6 {[%clk 0:02:50]} 6. O-O {[%clk 0:02:44]}  Nxd4 {[%clk 0:02:47]} 7. Nxd4 {[%clk 0:02:43]}  cxd4 {[%clk 0:02:48]} 8. Qg4 {[%clk 0:02:39]}  Ne7 {[%clk 0:02:46]} 9. Qxd4 {[%clk 0:02:36]}  Nc6 {[%clk 0:02:46]} 10. Qf4 {[%clk 0:02:33]}  Qc7 {[%clk 0:02:45]} 11. Re1 {[%clk 0:02:33]}  Nb4 {[%clk 0:02:38]} 12. Nc3 {[%clk 0:02:31]}  Nxd3 {[%clk 0:02:38]} 13. cxd3 {[%clk 0:02:30]}  Be7 {[%clk 0:02:38]} 14. Nxd5 {[%clk 0:02:25]}  exd5 {[%clk 0:02:35]} 15. e6 {[%clk 0:02:24]}  Qxf4 {[%clk 0:02:31]} 16. exd7+ {[%clk 0:02:24]}  Kxd7 {[%clk 0:02:32]} 17. Bxf4 {[%clk 0:02:23]}  Bf6 {[%clk 0:02:27]} 18. Be5 {[%clk 0:02:21]}  Rhe8 {[%clk 0:02:15]} 19. Bxf6 {[%clk 0:02:20]}  gxf6 {[%clk 0:02:16]} 20. Kf1 {[%clk 0:02:16]}  Kd6 {[%clk 0:02:16]} 21. d4 {[%clk 0:02:07]}  Re6 {[%clk 0:02:12]} 22. Re3 {[%clk 0:02:03]}  Rc8 {[%clk 0:02:11]} 23. Rae1 {[%clk 0:01:59]}  Rc2 {[%clk 0:02:10]} 24. R1e2 {[%clk 0:01:59]}  Rc1+ {[%clk 0:02:08]} 25. Re1 {[%clk 0:01:59]}  Rc4 {[%clk 0:02:08]} 26. Rd1 {[%clk 0:01:55]}  Rxe3 {[%clk 0:01:59]} 27. fxe3 {[%clk 0:01:55]}  Rc2 {[%clk 0:02:00]} 28. Rb1 {[%clk 0:01:29]}  Ke6 {[%clk 0:01:56]} 29. h3 {[%clk 0:01:26]}  Kf5 {[%clk 0:01:53]} 30. Kg1 {[%clk 0:01:25]}  Ke4 {[%clk 0:01:51]} 31. Rf1 {[%clk 0:01:24]}  Kxe3 {[%clk 0:01:47]} 32. Rxf6 {[%clk 0:01:23]}  Rc7 {[%clk 0:01:42]} 33. Rh6 {[%clk 0:01:11]}  Kxd4 {[%clk 0:01:40]} 34. Kf2 {[%clk 0:01:08]}  f5 {[%clk 0:01:26]} 35. Kf3 {[%clk 0:01:07]}  Kd3 {[%clk 0:01:22]} 36. Kf4 {[%clk 0:01:02]}  Rf7 {[%clk 0:00:57]} 37. Ke5 {[%clk 0:00:59]}  d4 {[%clk 0:00:57]} 38. Rd6 {[%clk 0:00:59]}  Re7+ {[%clk 0:00:51]} 39. Kxf5 {[%clk 0:00:58]}  Ke3 {[%clk 0:00:49]} 40. g4 {[%clk 0:00:53]}  d3 {[%clk 0:00:49]} 41. g5 {[%clk 0:00:52]}  d2 {[%clk 0:00:48]} 42. h4 {[%clk 0:00:52]}  Ke2 {[%clk 0:00:47]} 43. h5 {[%clk 0:00:52]}  d1=Q {[%clk 0:00:46]} 44. Rxd1 {[%clk 0:00:51]}  Kxd1 {[%clk 0:00:47]} 45. g6 {[%clk 0:00:51]}  hxg6+ {[%clk 0:00:47]} 46. hxg6 {[%clk 0:00:51]}  Kc2 {[%clk 0:00:47]} 0-1


[Site "https://www.chess.com"]

[Event "Titled Tuesday Blitz December 06 Early 2022"]
[White "Iskusnyh, Sergei"]
[Black "Ohanyan, Emin"]
[WhiteFideId "4120027"]
[BlackFideId "13312022"]
[WhiteElo "2492"]
[BlackElo "2352"]
[Result "0-1"]
[Round "02"]
[TimeControl "180+1"]
[Date "2022.12.07"]
[WhiteClock "0:00:03"]
[BlackClock "0:00:17"]

1. d4 {[%clk 0:03:00]}  Nf6 {[%clk 0:02:57]} 2. c4 {[%clk 0:03:01]}  e6 {[%clk 0:02:57]} 3. g3 {[%clk 0:03:01]}  d5 {[%clk 0:02:57]} 4. Bg2 {[%clk 0:03:00]}  dxc4 {[%clk 0:02:52]} 5. Nf3 {[%clk 0:02:59]}  c6 {[%clk 0:02:53]} 6. a4 {[%clk 0:02:56]}  Bb4+ {[%clk 0:02:48]} 7. Bd2 {[%clk 0:02:50]}  a5 {[%clk 0:02:48]} 8. O-O {[%clk 0:02:50]}  O-O {[%clk 0:02:46]} 9. Qc2 {[%clk 0:02:49]}  Bxd2 {[%clk 0:02:17]} 10. Nbxd2 {[%clk 0:02:43]}  b5 {[%clk 0:02:17]} 11. b3 {[%clk 0:02:40]}  cxb3 {[%clk 0:02:14]} 12. Nxb3 {[%clk 0:02:41]}  Nd5 {[%clk 0:02:05]} 13. Rfd1 {[%clk 0:02:34]}  Qd6 {[%clk 0:02:04]} 14. Ne5 {[%clk 0:02:25]}  b4 {[%clk 0:01:46]} 15. Nc5 {[%clk 0:02:17]}  Na6 {[%clk 0:01:42]} 16. Ne4 {[%clk 0:02:15]}  Qc7 {[%clk 0:01:39]} 17. Qxc6 {[%clk 0:01:24]}  Qxc6 {[%clk 0:01:36]} 18. Nxc6 {[%clk 0:01:25]}  Bd7 {[%clk 0:01:29]} 19. Nxa5 {[%clk 0:01:23]}  Nac7 {[%clk 0:01:28]} 20. Nb3 {[%clk 0:01:15]}  Bxa4 {[%clk 0:01:24]} 21. Nec5 {[%clk 0:01:12]}  Bb5 {[%clk 0:01:19]} 22. e3 {[%clk 0:01:09]}  Ra3 {[%clk 0:01:19]} 23. Rab1 {[%clk 0:01:07]}  Nc3 {[%clk 0:01:15]} 24. Bf3 {[%clk 0:01:04]}  Bc4 {[%clk 0:01:07]} 25. Rdc1 {[%clk 0:01:03]}  Nxb1 {[%clk 0:00:58]} 26. Rxb1 {[%clk 0:01:04]}  Nd5 {[%clk 0:00:54]} 27. Nd2 {[%clk 0:01:00]}  Ba2 {[%clk 0:00:43]} 28. Rb2 {[%clk 0:00:56]}  Rb8 {[%clk 0:00:40]} 29. Nd7 {[%clk 0:00:52]}  Rb5 {[%clk 0:00:36]} 30. Ne5 {[%clk 0:00:52]}  Nc3 {[%clk 0:00:32]} 31. h4 {[%clk 0:00:44]}  g6 {[%clk 0:00:32]} 32. h5 {[%clk 0:00:44]}  Kg7 {[%clk 0:00:32]} 33. h6+ {[%clk 0:00:41]}  Kf6 {[%clk 0:00:30]} 34. Kh2 {[%clk 0:00:38]}  Bd5 {[%clk 0:00:24]} 35. e4 {[%clk 0:00:33]}  Ra2 {[%clk 0:00:25]} 36. Ndc4 {[%clk 0:00:28]}  Bxc4 {[%clk 0:00:23]} 37. Nxc4 {[%clk 0:00:29]}  Rxb2 {[%clk 0:00:23]} 38. Nxb2 {[%clk 0:00:29]}  b3 {[%clk 0:00:22]} 39. Kg2 {[%clk 0:00:20]}  Rb4 {[%clk 0:00:19]} 40. d5 {[%clk 0:00:18]}  exd5 {[%clk 0:00:20]} 41. exd5 {[%clk 0:00:18]}  Na4 {[%clk 0:00:21]} 42. Nd3 {[%clk 0:00:14]}  Rb8 {[%clk 0:00:18]} 43. d6 {[%clk 0:00:10]}  b2 {[%clk 0:00:17]} 44. Nf4 {[%clk 0:00:09]}  b1=Q {[%clk 0:00:16]} 45. Nd5+ {[%clk 0:00:10]}  Ke5 {[%clk 0:00:17]} 46. Ne3 {[%clk 0:00:10]}  Kxd6 {[%clk 0:00:17]} 47. Nc4+ {[%clk 0:00:09]}  Ke7 {[%clk 0:00:17]} 48. Ne3 {[%clk 0:00:08]}  Kf8 {[%clk 0:00:17]} 49. Bd5 {[%clk 0:00:08]}  Qc1 {[%clk 0:00:17]} 50. Ng4 {[%clk 0:00:07]}  Rb1 {[%clk 0:00:17]} 51. Kh2 {[%clk 0:00:06]}  Nc3 {[%clk 0:00:16]} 52. Bf3 {[%clk 0:00:04]}  Qg1+ {[%clk 0:00:16]} 53. Kh3 {[%clk 0:00:03]}  Nd1 {[%clk 0:00:17]} 0-1


[Site "https://www.chess.com"]

[Event "Titled Tuesday Blitz December 06 Early 2022"]
[White "Ismayil, Malak"]
[Black "Martin, Lewis"]
[WhiteFideId "13412604"]
[BlackFideId "410551"]
[WhiteElo "1880"]
[BlackElo "2145"]
[Result "1-0"]
[Round "02"]
[TimeControl "180+1"]
[Date "2022.12.07"]
[WhiteClock "0:02:21"]
[BlackClock "0:00:54"]

1. e4 {[%clk 0:03:00]}  c5 {[%clk 0:02:16]} 2. Nf3 {[%clk 0:03:00]}  d6 {[%clk 0:02:16]} 3. Bb5+ {[%clk 0:03:00]}  Bd7 {[%clk 0:02:15]} 4. Bxd7+ {[%clk 0:03:00]}  Qxd7 {[%clk 0:02:16]} 5. O-O {[%clk 0:03:01]}  Nf6 {[%clk 0:02:12]} 6. Qe2 {[%clk 0:03:02]}  Nc6 {[%clk 0:02:11]} 7. Rd1 {[%clk 0:03:02]}  e5 {[%clk 0:02:05]} 8. c3 {[%clk 0:03:02]}  Be7 {[%clk 0:02:01]} 9. d4 {[%clk 0:03:03]}  cxd4 {[%clk 0:01:56]} 10. cxd4 {[%clk 0:03:04]}  exd4 {[%clk 0:01:56]} 11. Nxd4 {[%clk 0:03:04]}  O-O {[%clk 0:01:41]} 12. Nc3 {[%clk 0:03:02]}  Rfe8 {[%clk 0:01:36]} 13. Nf5 {[%clk 0:03:02]}  Bf8 {[%clk 0:01:33]} 14. Qf3 {[%clk 0:02:54]}  Ne5 {[%clk 0:01:28]} 15. Qg3 {[%clk 0:02:48]}  Rac8 {[%clk 0:01:17]} 16. Bg5 {[%clk 0:02:46]}  Rxc3 {[%clk 0:01:10]} 17. bxc3 {[%clk 0:02:37]}  Nxe4 {[%clk 0:01:09]} 18. Qf4 {[%clk 0:02:37]}  Ng6 {[%clk 0:01:05]} 19. Qg4 {[%clk 0:02:31]}  h5 {[%clk 0:01:03]} 20. Nh6+ {[%clk 0:02:24]}  gxh6 {[%clk 0:00:59]} 21. Qxd7 {[%clk 0:02:25]}  hxg5 {[%clk 0:00:54]} 22. Qxe8 {[%clk 0:02:21]} 1-0


[Site "https://www.chess.com"]

[Event "Titled Tuesday Blitz December 06 Early 2022"]
[White "Jimenez Almeida, Luis David"]
[Black "Tarnowska, Aleksandra"]
[WhiteFideId "22242244"]
[BlackFideId "1180967"]
[WhiteElo "2158"]
[BlackElo "1776"]
[Result "1-0"]
[Round "02"]
[TimeControl "180+1"]
[Date "2022.12.07"]
[WhiteClock "0:01:43"]
[BlackClock "0:00:20"]

1. e4 {[%clk 0:03:00]}  c5 {[%clk 0:02:59]} 2. Nc3 {[%clk 0:03:00]}  e6 {[%clk 0:02:58]} 3. Nge2 {[%clk 0:02:59]}  a6 {[%clk 0:02:57]} 4. d4 {[%clk 0:02:58]}  cxd4 {[%clk 0:02:58]} 5. Nxd4 {[%clk 0:02:59]}  Qc7 {[%clk 0:02:58]} 6. Bd3 {[%clk 0:02:59]}  Nc6 {[%clk 0:02:57]} 7. Nb3 {[%clk 0:02:53]}  Nf6 {[%clk 0:02:56]} 8. O-O {[%clk 0:02:49]}  Be7 {[%clk 0:02:55]} 9. f4 {[%clk 0:02:48]}  d6 {[%clk 0:02:55]} 10. Be3 {[%clk 0:02:48]}  O-O {[%clk 0:02:54]} 11. Qe2 {[%clk 0:02:46]}  b5 {[%clk 0:02:54]} 12. Qf2 {[%clk 0:02:42]}  Bb7 {[%clk 0:02:51]} 13. h3 {[%clk 0:02:40]}  Rac8 {[%clk 0:02:46]} 14. Rae1 {[%clk 0:02:35]}  Rfd8 {[%clk 0:02:38]} 15. Bb6 {[%clk 0:02:34]}  Qd7 {[%clk 0:02:36]} 16. Bxd8 {[%clk 0:02:34]}  Rxd8 {[%clk 0:02:36]} 17. a3 {[%clk 0:02:30]}  d5 {[%clk 0:02:28]} 18. e5 {[%clk 0:02:28]}  Ne8 {[%clk 0:02:22]} 19. f5 {[%clk 0:02:17]}  Bf8 {[%clk 0:01:51]} 20. Qh4 {[%clk 0:02:04]}  h6 {[%clk 0:01:42]} 21. fxe6 {[%clk 0:01:59]}  Qxe6 {[%clk 0:01:36]} 22. Kh1 {[%clk 0:01:50]}  Be7 {[%clk 0:01:29]} 23. Qg3 {[%clk 0:01:47]}  Bf8 {[%clk 0:00:44]} 24. Bf5 {[%clk 0:01:43]}  Qe7 {[%clk 0:00:44]} 25. e6 {[%clk 0:01:44]}  f6 {[%clk 0:00:20]} 26. Qg6 {[%clk 0:01:43]} 1-0


[Site "https://www.chess.com"]

[Event "Titled Tuesday Blitz December 06 Early 2022"]
[White "Kazakouski, Valery"]
[Black "Petrova, Irina"]
[WhiteFideId "13507443"]
[BlackFideId "14124122"]
[WhiteElo "2516"]
[BlackElo "2023"]
[Result "1-0"]
[Round "02"]
[TimeControl "180+1"]
[Date "2022.12.07"]
[WhiteClock "0:02:32"]
[BlackClock "0:00:42"]

1. Nf3 {[%clk 0:02:56]}  d6 {[%clk 0:03:00]} 2. d4 {[%clk 0:02:56]}  g6 {[%clk 0:03:00]} 3. g3 {[%clk 0:02:55]}  Bg7 {[%clk 0:03:00]} 4. Bg2 {[%clk 0:02:55]}  Nc6 {[%clk 0:03:01]} 5. O-O {[%clk 0:02:55]}  Nf6 {[%clk 0:03:01]} 6. c4 {[%clk 0:02:55]}  O-O {[%clk 0:03:01]} 7. Nc3 {[%clk 0:02:55]}  Bf5 {[%clk 0:03:01]} 8. Be3 {[%clk 0:02:55]}  Ne4 {[%clk 0:02:59]} 9. Nxe4 {[%clk 0:02:56]}  Bxe4 {[%clk 0:03:00]} 10. d5 {[%clk 0:02:57]}  Na5 {[%clk 0:02:44]} 11. b3 {[%clk 0:02:55]}  c5 {[%clk 0:02:38]} 12. Bh3 {[%clk 0:02:55]}  Bxf3 {[%clk 0:02:33]} 13. exf3 {[%clk 0:02:56]}  a6 {[%clk 0:02:18]} 14. Rc1 {[%clk 0:02:55]}  b5 {[%clk 0:02:18]} 15. f4 {[%clk 0:02:52]}  Rb8 {[%clk 0:02:12]} 16. Rc2 {[%clk 0:02:51]}  bxc4 {[%clk 0:02:08]} 17. bxc4 {[%clk 0:02:52]}  Rb2 {[%clk 0:02:08]} 18. Rxb2 {[%clk 0:02:47]}  Bxb2 {[%clk 0:02:09]} 19. Qc2 {[%clk 0:02:45]}  Bg7 {[%clk 0:02:08]} 20. Rb1 {[%clk 0:02:43]}  Qc7 {[%clk 0:01:58]} 21. Bd2 {[%clk 0:02:39]}  Nb7 {[%clk 0:01:38]} 22. Qb3 {[%clk 0:02:33]}  Rb8 {[%clk 0:01:24]} 23. Qb6 {[%clk 0:02:33]}  Qxb6 {[%clk 0:01:13]} 24. Rxb6 {[%clk 0:02:34]}  f5 {[%clk 0:01:10]} 25. g4 {[%clk 0:02:31]}  fxg4 {[%clk 0:00:58]} 26. Bxg4 {[%clk 0:02:32]}  Kf8 {[%clk 0:00:55]} 27. Bd7 {[%clk 0:02:32]}  a5 {[%clk 0:00:42]} 28. Bc6 {[%clk 0:02:32]} 1-0


[Site "https://www.chess.com"]